bitfinex/quotes_ETHUSD_20241106
["timestamp","ask_amount","ask_price","bid_price","bid_amount"]
[1730851202461,2.14653943,2425.9,2425.4,0.37032984]
[1730851202799,2.14653943,2425.9,2425.5,0.37032984]
[1730851202800,7.14653943,2425.9,2425.5,0.37032984]
[1730851202957,8.1976981,2425.9,2425.6,0.37032984]
[1730851203163,8.1976981,2425.9,2425.3,0.8254]
[1730851203362,8.1976981,2425.9,2425.4,0.37028551]
[1730851203589,8.1976981,2425.9,2425.5,0.37028551]
[1730851203796,3.1976981,2425.9,2425.6,0.37028551]
[1730851203961,2.14653943,2425.9,2425.3,0.8254]
[1730851204161,7.14653943,2425.9,2425.4,0.37028183]
[1730851204495,2.93573943,2426.0,2425.5,0.37028183]
[1730851204680,2.14653943,2425.9,2425.5,0.37028183]
[1730851204862,2.14653943,2425.9,2425.3,0.8254]
[1730851205065,2.14653943,2425.9,2425.4,0.37026021]
[1730851205262,2.14653943,2426.0,2425.6,0.8189]
[1730851205595,2.14653943,2426.4,2426.0,0.8189]
[1730851205905,5.0,2426.8,2426.0,0.8189]
[1730851205906,2.14653943,2426.7,2426.2,0.8189]
[1730851206060,2.14653943,2426.7,2425.8,3.86631005]
[1730851206397,2.14653943,2426.7,2425.1,0.01]
[1730851206398,7.14653943,2426.5,2425.9,1.18861411]
[1730851206557,0.7892,2426.3,2425.9,0.8189]
[1730851206757,0.7892,2426.3,2425.4,4.07331506]
[1730851207101,0.7892,2426.3,2425.5,5.53542199]
[1730851207300,0.7892,2426.3,2425.6,0.36975522]
[1730851207462,0.7892,2426.3,2425.5,1.45010838]
[1730851207800,2.14653943,2426.4,2425.6,0.36965411]
[1730851207801,0.7892,2426.1,2425.6,0.36965411]
[1730851208003,0.7892,2426.1,2425.3,0.8189]
[1730851208309,2.93573943,2426.1,2425.4,0.36968676]
[1730851208480,2.93573943,2426.1,2425.5,0.36968676]
[1730851208668,2.93573943,2426.1,2425.3,0.8189]
[1730851208869,2.93573943,2426.1,2425.4,0.58880208]
[1730851209103,2.93573943,2426.1,2425.6,0.8189]
[1730851209263,2.14653943,2426.2,2425.6,2.19135865]
[1730851209468,2.14653943,2426.3,2425.7,0.36964324]
[1730851209805,0.7892,2426.4,2425.6,2.19135865]
[1730851209806,2.93573943,2426.4,2425.8,0.36961576]
[1730851209991,2.93573943,2426.4,2425.9,0.8189]
[1730851210465,3.9868981,2426.4,2425.9,0.8189]
[1730851210665,2.14653943,2426.3,2425.6,0.8189]
[1730851210902,2.14653943,2426.3,2425.7,0.36957915]
[1730851211108,0.7892,2426.1,2425.6,0.8189]
[1730851211404,0.43081981,2426.0,2425.6,0.8189]
[1730851211765,7.57735924,2426.0,2425.4,0.8189]
[1730851212293,7.57735924,2426.0,2425.0,1.94877347]
[1730851212294,0.7892,2425.9,2425.2,0.8189]
[1730851212499,0.7892,2425.9,2425.3,0.36965926]
[1730851212500,2.93573943,2425.9,2425.3,0.36965926]
[1730851212708,1.3461629,2424.9,2424.8,5.2387687]
[1730851213006,1.3461629,2424.9,2424.8,7.02705896]
[1730851213419,1.3461629,2424.9,2424.8,2.65460031]
[1730851213613,1.3461629,2424.9,2424.8,1.11172264]
[1730851213971,1.3461629,2424.9,2424.8,0.7153161]
[1730851214166,1.3461629,2424.9,2424.7,0.7153161]
[1730851214407,1.3461629,2424.9,2424.7,1.58162615]
[1730851214723,1.3461629,2424.9,2424.8,3.55]
[1730851214899,1.3461629,2424.9,2424.8,5.33826433]
[1730851215102,1.3461629,2424.9,2424.8,6.27937729]
[1730851215828,1.3461629,2424.9,2424.8,6.65077729]
[1730851217194,1.3461629,2424.9,2424.8,6.65075415]
[1730851218134,2.1441001,2426.1,2425.0,0.01]
[1730851218296,2.1441001,2426.1,2425.2,0.55]
[1730851218297,0.7857,2426.1,2425.2,0.55]
[1730851218498,0.7857,2426.1,2419.5,10.74495195]
[1730851218733,0.01,2425.9,2425.0,0.55]
[1730851218931,12.44,2425.9,2425.0,0.55]
[1730851219299,0.85817468,2425.5,2425.2,3.18655523]
[1730851219445,0.85817468,2425.8,2425.2,3.18655523]
[1730851219622,0.85817468,2425.8,2425.5,3.18655523]
[1730851220347,0.85817468,2425.7,2425.5,3.18655523]
[1730851220731,0.85817468,2425.7,2421.4,7.490692]
[1730851220932,0.85817468,2425.7,2420.4,9.31229169]
[1730851220933,12.43,2425.6,2425.3,3.18655523]
[1730851221166,0.85817468,2425.5,2424.8,0.07177254]
[1730851221447,12.43,2425.4,2424.8,0.07177254]
[1730851221608,13.28817468,2425.4,2424.8,0.07177254]
[1730851222047,12.43,2425.3,2424.8,0.07177254]
[1730851222210,12.43,2425.3,2424.1,0.98993397]
[1730851222416,14.75178755,2425.3,2424.8,0.07175179]
[1730851222634,12.43,2425.2,2424.8,0.07175179]
[1730851222954,12.43,2425.2,2424.2,0.55]
[1730851223162,12.490692,2425.2,2424.6,0.55]
[1730851223937,11.144692,2425.2,2424.5,0.07175287]
[1730851224135,12.62006616,2425.2,2424.5,0.07175287]
[1730851224656,12.62006616,2425.2,2424.6,0.36963259]
[1730851224859,13.47824084,2425.2,2424.7,0.36963259]
[1730851225021,11.084,2425.1,2424.8,0.36963259]
[1730851225224,11.144692,2425.1,2424.9,0.36963259]
[1730851225565,11.144692,2425.1,2425.0,0.36963259]
[1730851226732,11.144692,2425.1,2425.0,0.36962507]
[1730851228729,11.07293566,2425.1,2425.0,0.36962507]
[1730851230634,11.07293566,2425.1,2425.0,4.49333507]
[1730851230876,11.07293566,2425.1,2425.0,7.49333507]
[1730851231669,11.07293566,2425.1,2425.0,7.12371]
[1730851231872,11.07293566,2425.1,2425.0,7.49176553]
[1730851232537,11.07293566,2425.1,2425.0,7.49174341]
[1730851232879,11.07293566,2425.1,2425.0,8.65330696]
[1730851235485,11.07293566,2425.1,2425.0,9.20330696]
[1730851235655,0.060692,2425.1,2425.0,9.20329558]
[1730851235971,0.060692,2425.1,2425.0,10.27600346]
[1730851235972,2e-06,2425.1,2425.0,10.27600346]
[1730851236448,2e-06,2425.1,2425.0,13.00344454]
[1730851237034,2e-06,2425.1,2425.0,13.00321338]
[1730851238172,1.71634937,2426.2,2425.8,4.12235]
[1730851238173,2.76652366,2425.9,2425.8,4.12235]
[1730851238349,2.76652366,2426.1,2426.0,4.12201]
[1730851238668,2.76652366,2426.1,2426.0,4.57252988]
[1730851238839,2.76652366,2426.1,2426.0,7.57252988]
[1730851239043,2.76652366,2426.1,2426.0,7.20444015]
[1730851239359,2.76652366,2426.1,2426.0,7.48998376]
[1730851239556,3.13506269,2426.1,2426.0,0.36797376]
[1730851240176,3.13506269,2426.1,2425.9,7.12203]
[1730851240375,3.13506269,2426.1,2426.0,4.12201]
[1730851240533,2.76652366,2426.1,2426.0,4.12201]
[1730851241973,2.76652366,2426.1,2426.0,4.48956547]
[1730851242476,2.76652366,2426.1,2426.0,4.48942397]
[1730851245070,2.76652366,2426.1,2426.0,4.12201]
[1730851245454,2.76652366,2426.1,2426.0,4.48926137]
[1730851245879,2.76652366,2426.1,2426.0,8.65040551]
[1730851246195,2.76652366,2426.1,2426.0,8.65039784]
[1730851246857,2.76652366,2426.1,2426.0,9.20039784]
[1730851247591,0.060692,2426.3,2426.2,4.12167]
[1730851248593,0.060692,2426.3,2426.2,7.12167]
[1730851248806,0.060692,2426.3,2426.2,9.1094852]
[1730851249088,0.060692,2426.3,2426.2,9.0270656]
[1730851249512,0.060692,2426.3,2426.2,9.0268808]
[1730851253142,2e-06,2426.3,2426.2,9.60644008]
[1730851253287,2e-06,2426.3,2426.2,9.6058126]
[1730851256320,2e-06,2426.3,2426.2,9.2394866]
[1730851256498,2e-06,2426.3,2426.2,9.60551498]
[1730851257202,2.76652366,2427.1,2427.0,4.12031]
[1730851257403,2.76652366,2427.1,2427.0,7.20270486]
[1730851258332,2.76652366,2427.4,2427.3,4.1198]
[1730851258506,2.76652366,2427.4,2427.3,7.1198]
[1730851259105,0.060692,2427.5,2427.4,7.11963]
[1730851259635,0.060692,2427.5,2427.4,7.2020075]
[1730851260042,0.060692,2427.5,2427.4,8.9423977]
[1730851260200,0.060692,2427.5,2427.4,8.8600202]
[1730851262728,0.060692,2427.5,2427.4,9.22565479]
[1730851262897,0.060692,2427.5,2427.4,8.8600202]
[1730851263234,0.060692,2427.5,2427.4,3.0]
[1730851263439,0.060692,2427.5,2427.4,4.11963]
[1730851263828,0.060692,2427.5,2427.3,4.11968]
[1730851264138,0.060692,2427.5,2427.1,8.2401]
[1730851264139,0.7585,2427.4,2427.1,8.2401]
[1730851264302,0.7585,2427.4,2427.1,4.12003]
[1730851264643,0.7585,2427.4,2427.2,4.11994]
[1730851264941,0.7585,2427.4,2427.1,4.12003]
[1730851265141,0.7585,2427.4,2427.2,4.1198]
[1730851265309,0.7585,2427.4,2427.1,4.12003]
[1730851265696,0.7585,2427.4,2427.1,8.24006]
[1730851266233,0.7585,2427.4,2427.2,4.11995]
[1730851266894,0.7585,2427.4,2427.1,4.12003]
[1730851267098,0.7585,2427.4,2427.3,4.1198]
[1730851267730,0.7585,2427.4,2427.1,4.12003]
[1730851268032,0.7585,2427.2,2426.7,4.12067]
[1730851268218,4.14016,2427.1,2426.5,4.12105]
[1730851268423,0.7585,2426.9,2426.5,4.12105]
[1730851268594,0.7585,2426.9,2426.3,4.12142]
[1730851268801,0.7585,2426.8,2426.4,0.36622515]
[1730851269540,0.7585,2426.8,2426.2,0.36622515]
[1730851269541,0.7585,2426.7,2426.2,0.36622515]
[1730851270347,0.7585,2426.7,2426.2,4.48777515]
[1730851270502,0.7585,2426.7,2426.3,0.36622515]
[1730851270704,1.248426,2426.7,2426.3,0.36622515]
[1730851270923,1.248426,2426.7,2426.3,4.48758515]
[1730851271128,0.7585,2426.7,2426.3,4.12136]
[1730851271831,0.7585,2426.7,2426.4,4.12132]
[1730851272000,0.7585,2426.7,2426.3,4.12136]
[1730851272714,0.7585,2426.7,2426.1,4.12177]
[1730851273039,0.7585,2426.7,2426.2,0.3665519]
[1730851273238,1.248415,2426.7,2426.2,4.4881119]
[1730851273434,1.248415,2426.7,2426.1,4.12172]
[1730851273435,1.248415,2426.7,2426.3,0.3665519]
[1730851273600,0.7585,2426.7,2426.3,4.12149]
[1730851275646,0.7585,2426.7,2426.1,4.12172]
[1730851275861,0.826025,2427.0,2425.9,7.1221]
[1730851275862,0.02,2426.5,2426.2,0.36674856]
[1730851276031,0.02,2426.5,2426.0,0.36674856]
[1730851276032,4.12145,2426.4,2426.0,0.36674856]
[1730851276231,4.12145,2426.4,2425.8,0.36674856]
[1730851276232,0.7685,2426.2,2425.8,0.36674856]
[1730851276566,0.7685,2426.2,2425.6,0.07171427]
[1730851276567,0.7585,2426.0,2425.7,0.36674856]
[1730851277260,0.7585,2426.0,2425.6,0.36674856]
[1730851277465,0.01,2425.9,2425.6,0.36674856]
[1730851277967,0.7585,2425.8,2425.6,0.36674856]
[1730851278686,0.7585,2425.8,2425.5,4.12272]
[1730851278973,0.7585,2425.8,2425.3,4.12305]
[1730851279264,1.247551,2425.8,2425.4,0.36651179]
[1730851279514,1.247551,2425.8,2425.3,0.36651179]
[1730851279515,0.7585,2425.7,2425.3,0.36651179]
[1730851279635,0.7585,2425.7,2425.2,0.36651179]
[1730851279636,0.7685,2425.7,2425.2,0.36651179]
[1730851280238,0.7685,2425.7,2425.2,4.48988179]
[1730851280446,0.7685,2425.7,2425.2,4.12337]
[1730851280978,0.7685,2425.7,2425.3,4.12318]
[1730851281131,0.7785,2425.7,2425.1,4.12349]
[1730851281481,0.7585,2425.6,2425.0,7.1237]
[1730851281674,5.371291,2425.6,2425.0,7.1237]
[1730851281825,0.7585,2425.5,2425.0,7.1237]
[1730851282030,0.7585,2425.5,2425.0,3.0]
[1730851282267,0.7585,2425.4,2424.9,3.0]
[1730851282567,0.7585,2425.4,2424.9,4.12382]
[1730851282942,0.01,2425.3,2424.5,4.19624229]
[1730851283143,0.01,2425.3,2424.6,4.12436]
[1730851283144,0.7585,2425.2,2424.6,4.12436]
[1730851283360,0.7585,2425.2,2424.5,4.19624229]
[1730851283560,0.7585,2425.0,2424.5,0.07178229]
[1730851283796,0.7685,2424.8,2424.5,0.07178229]
[1730851284005,0.7585,2424.6,2423.8,4.12565]
[1730851284185,0.7585,2424.4,2423.9,0.36550718]
[1730851284351,0.7685,2424.4,2423.8,4.12565]
[1730851284703,0.7685,2424.4,2423.7,4.12588]
[1730851284704,0.7585,2424.3,2423.7,4.12588]
[1730851284849,0.02,2424.2,2423.6,4.12603]
[1730851285049,0.7585,2424.1,2423.6,4.12603]
[1730851285251,0.02,2424.0,2423.2,4.12669]
[1730851285497,0.7585,2423.9,2423.4,4.12639]
[1730851285797,0.7585,2423.5,2423.2,4.12669]
[1730851285952,0.7585,2423.5,2422.8,4.12738]
[1730851286153,0.01,2423.3,2422.6,4.188462]
[1730851286502,0.7585,2423.2,2422.6,0.8923462]
[1730851286679,0.7585,2423.6,2422.8,8.2549]
[1730851286889,0.7585,2423.6,2423.3,4.12655]
[1730851287090,0.7585,2423.6,2422.9,0.54959972]
[1730851287272,0.7585,2423.6,2422.8,0.54959972]
[1730851287682,0.7585,2423.6,2422.9,7.12719]
[1730851287882,0.7585,2423.6,2423.0,0.76767897]
[1730851288065,0.7585,2423.6,2423.1,4.1268]
[1730851288656,0.7585,2423.6,2423.3,4.12645]
[1730851289782,0.7585,2423.6,2423.5,4.12626]
[1730851289983,0.8264,2423.9,2423.0,0.76767897]
[1730851290191,0.8264,2423.9,2423.7,4.12589]
[1730851290575,0.8264,2423.9,2423.2,0.55]
[1730851290576,0.8264,2423.9,2423.8,4.12575]
[1730851291326,0.8264,2423.9,2423.6,4.12608]
[1730851291480,0.8364,2423.9,2423.5,3.0]
[1730851292018,0.8364,2423.9,2423.1,0.48560768]
[1730851292228,0.8364,2423.9,2423.3,4.12643]
[1730851292809,0.8364,2423.9,2423.4,4.12642]
[1730851293030,0.8264,2423.6,2423.1,4.12691]
[1730851293186,0.8264,2423.6,2423.0,4.12704]
[1730851293187,0.8364,2423.6,2423.0,4.12704]
[1730851293725,0.01,2423.5,2422.8,4.12743]
[1730851293889,1.26000571,2423.6,2422.8,4.55342141]
[1730851294078,1.26000571,2423.6,2423.1,4.12691]
[1730851294284,1.26000571,2423.6,2423.2,4.12666]
[1730851294585,1.26000571,2423.6,2423.0,4.12707]
[1730851294586,0.76277271,2423.6,2423.0,4.12707]
[1730851294976,0.76277271,2423.6,2423.1,4.12694]
[1730851295588,0.76277271,2423.6,2422.9,7.12724]
[1730851296033,0.76277271,2423.6,2423.1,4.12692]
[1730851296394,0.76277271,2423.6,2423.0,4.12709]
[1730851296612,1.66422098,2423.6,2423.0,4.12709]
[1730851297093,1.66422098,2423.6,2423.1,4.12692]
[1730851297297,0.75277271,2423.6,2423.4,4.1263]
[1730851297502,3.0,2424.1,2423.0,0.0737]
[1730851297503,0.8264,2423.9,2423.6,4.12595]
[1730851297814,0.8264,2423.9,2423.8,4.12575]
[1730851298185,0.8264,2423.9,2423.6,4.12595]
[1730851298398,0.8264,2423.9,2423.6,4.951188]
[1730851298732,0.8264,2423.9,2423.6,4.12595]
[1730851299252,0.8264,2423.9,2423.8,4.12575]
[1730851300934,0.8264,2424.2,2423.8,4.12575]
[1730851302232,0.8264,2424.2,2423.6,4.12604]
[1730851302435,0.8264,2424.2,2423.7,4.1259]
[1730851302633,0.8264,2424.2,2423.8,4.12568]
[1730851303704,0.8264,2424.2,2423.8,8.25132]
[1730851303905,0.8264,2424.2,2423.9,4.12544]
[1730851304409,0.8264,2424.2,2423.8,4.12564]
[1730851304796,0.8264,2424.2,2423.9,4.12554]
[1730851305826,0.8264,2424.2,2424.0,4.12531]
[1730851306310,0.8264,2424.2,2424.1,4.12524]
[1730851306693,0.8264,2424.2,2423.9,5.0331763]
[1730851306893,0.8264,2424.2,2424.0,4.12536]
[1730851307199,0.8264,2424.2,2423.9,4.12547]
[1730851307395,0.8264,2424.2,2423.9,8.25092]
[1730851307805,0.8264,2424.2,2424.0,4.12537]
[1730851307999,0.8264,2424.2,2423.9,4.12545]
[1730851308297,0.8264,2424.2,2424.1,4.12524]
[1730851309112,0.8264,2424.2,2424.1,3.95727996]
[1730851310365,0.8264,2424.2,2423.9,4.12545]
[1730851310536,0.8264,2424.2,2424.1,4.12524]
[1730851311021,0.8264,2424.2,2424.0,4.12541]
[1730851311221,0.8264,2424.2,2424.1,4.12524]
[1730851311445,0.01,2424.6,2424.1,4.950305]
[1730851311766,0.8043,2424.5,2424.4,4.12473]
[1730851312425,0.8143,2424.8,2424.7,4.12422]
[1730851312625,0.8043,2424.8,2424.7,4.12422]
[1730851312847,0.01,2425.0,2424.9,4.12388]
[1730851313678,0.8043,2425.4,2425.2,4.12332]
[1730851314178,0.8043,2425.4,2425.3,0.36782074]
[1730851314385,0.8043,2425.4,2425.3,0.36756356]
[1730851314572,0.8043,2425.4,2425.3,4.49076356]
[1730851315051,0.8043,2425.7,2425.4,4.12301]
[1730851315243,0.8043,2425.7,2425.5,4.12285]
[1730851317105,0.8043,2425.9,2425.6,4.12269]
[1730851319348,0.8043,2425.9,2425.6,4.12257]
[1730851319838,0.01,2426.0,2425.8,4.12235]
[1730851320042,0.8312,2426.2,2425.9,4.12216]
[1730851320341,0.8312,2426.2,2425.8,4.12235]
[1730851320569,0.01,2425.9,2425.3,4.12313]
[1730851320887,0.8212,2425.8,2425.4,0.36613995]
[1730851321093,0.8212,2425.8,2425.3,4.12313]
[1730851321888,0.8212,2425.8,2425.5,4.12281]
[1730851322097,0.8212,2425.8,2425.3,4.12306]
[1730851322658,0.8212,2425.8,2425.4,4.12301]
[1730851322999,0.8212,2426.0,2425.7,4.12252]
[1730851323154,0.8212,2426.2,2425.9,4.12218]
[1730851323348,0.8212,2426.2,2425.7,4.12252]
[1730851324152,0.8212,2426.2,2425.6,3.0]
[1730851324385,1.316481,2426.2,2425.6,7.12265]
[1730851324639,5.438171,2426.2,2425.6,3.0]
[1730851325756,4.12196,2426.1,2425.6,3.0]
[1730851325957,0.8312,2426.0,2425.4,3.0]
[1730851326179,0.8312,2426.0,2425.3,4.12314]
[1730851326180,4.12218,2425.9,2425.3,4.12314]
[1730851326379,0.495338,2425.8,2425.3,4.12314]
[1730851327380,0.495338,2425.8,2425.1,4.19714]
[1730851327381,0.8212,2425.7,2425.1,4.12344]
[1730851327557,0.8212,2425.7,2425.0,4.12368]
[1730851327558,0.01,2425.6,2425.0,4.12368]
[1730851328091,0.01,2425.6,2425.1,4.12353]
[1730851330196,0.8212,2425.7,2425.1,4.12341]
[1730851330404,0.01,2425.6,2425.2,4.20579649]
[1730851331001,0.01,2425.6,2425.1,4.12341]
[1730851333089,0.01,2425.6,2425.1,8.24684]
[1730851333289,0.01,2425.6,2425.2,0.36700014]
[1730851333498,12.43,2425.5,2425.2,0.36700014]
[1730851333885,18.703512,2425.5,2425.2,0.36700014]
[1730851334232,4.12332,2425.3,2425.0,0.36700014]
[1730851334436,4.12354,2425.1,2424.5,4.12446]
[1730851334584,12.43,2425.0,2424.6,0.36739951]
[1730851334795,0.8212,2424.9,2424.7,0.36739951]
[1730851335009,4.12405,2424.8,2424.4,0.36739951]
[1730851335197,6.692664,2424.9,2424.5,0.36739951]
[1730851335521,6.692664,2424.9,2424.3,4.12488]
[1730851335522,2.568674,2424.9,2424.6,0.36739951]
[1730851335690,6.692584,2424.9,2424.5,0.36739951]
[1730851335894,2.568674,2424.9,2424.4,4.12472]
[1730851336241,2.568674,2424.9,2424.5,0.36771224]
[1730851336397,2.568674,2424.9,2424.6,0.36771224]
[1730851336603,6.692564,2424.9,2424.5,0.36771224]
[1730851336792,6.692564,2424.9,2424.6,0.36771224]
[1730851336995,6.692564,2424.9,2424.3,4.12488]
[1730851336996,6.692564,2424.9,2424.4,0.36771224]
[1730851337237,6.692564,2424.9,2424.5,0.36771224]
[1730851337421,0.8212,2424.7,2424.4,0.36771224]
[1730851337623,4.94542,2424.7,2424.5,0.36771224]
[1730851337826,4.94542,2424.7,2424.2,0.36771224]
[1730851338215,4.94542,2424.7,2424.3,0.36771224]
[1730851338411,0.8212,2424.7,2424.4,0.36771224]
[1730851338612,0.8200124,2424.7,2424.5,0.08249109]
[1730851338832,12.43,2424.8,2424.5,8.61669224]
[1730851339003,12.43,2424.8,2424.6,0.36771224]
[1730851339200,12.43,2425.0,2424.8,4.12392]
[1730851339434,12.43,2425.0,2424.9,4.12388]
[1730851339753,12.43,2425.0,2424.9,4.96442717]
[1730851340347,12.43,2425.0,2424.9,5.33202367]
[1730851342414,12.43,2425.2,2425.0,4.12361]
[1730851342615,12.43,2425.3,2424.9,4.96442717]
[1730851342816,12.44,2425.3,2424.9,4.96442717]
[1730851343040,12.44,2425.3,2424.9,8.24763]
[1730851343867,12.44,2425.3,2424.9,4.12375]
[1730851344419,12.44,2425.3,2425.0,0.36795677]
[1730851344620,12.44,2425.3,2424.9,4.12375]
[1730851346068,16.5632,2425.3,2424.8,4.12403]
[1730851346215,18.713927,2425.3,2424.9,0.36793991]
[1730851346419,12.43,2425.3,2425.0,4.12357]
[1730851346643,12.43,2425.3,2424.9,4.20633896]
[1730851346644,12.43,2425.3,2425.1,4.12351]
[1730851346858,12.43,2425.3,2424.7,4.12415]
[1730851346859,12.44,2425.3,2424.7,4.12415]
[1730851347155,12.44,2425.3,2424.8,0.36792853]
[1730851347357,12.44,2425.3,2424.9,4.49177853]
[1730851347567,12.44,2425.3,2424.9,4.12385]
[1730851348123,14.04941509,2425.3,2424.7,4.12408]
[1730851348349,12.43,2425.2,2424.8,0.36792706]
[1730851348534,12.43,2425.2,2424.9,4.49176706]
[1730851348736,12.43,2425.2,2424.9,4.12384]
[1730851349245,12.43,2425.2,2424.7,4.12408]
[1730851349447,12.43,2425.2,2424.8,0.36792106]
[1730851349651,12.43,2425.2,2424.9,0.36792106]
[1730851350068,12.43,2425.2,2424.9,4.49176106]
[1730851350217,12.43,2425.2,2424.9,4.12384]
[1730851351093,0.01,2425.0,2424.3,0.0749]
[1730851351380,13.75612,2425.2,2424.4,0.36797293]
[1730851351381,4.13454,2424.6,2424.4,0.36797293]
[1730851351679,4.13454,2424.6,2424.0,0.36797293]
[1730851351882,4.13454,2424.6,2424.1,0.36797293]
[1730851352036,4.13454,2424.6,2424.2,0.36797293]
[1730851352375,5.040653,2424.6,2424.0,0.36797293]
[1730851352574,5.040653,2424.6,2424.1,0.36797293]
[1730851352751,5.040653,2424.6,2424.2,0.36797293]
[1730851352944,5.040653,2424.6,2424.0,0.36797293]
[1730851352945,0.01,2424.3,2424.0,0.36797293]
[1730851353183,12.43,2424.2,2423.8,0.36797293]
[1730851353341,12.43,2424.2,2423.9,0.36778961]
[1730851353542,12.43,2424.2,2424.0,0.36778961]
[1730851354060,12.43,2424.2,2423.8,0.36778961]
[1730851354259,12.43,2424.2,2423.9,0.36778961]
[1730851354466,12.43,2424.2,2423.8,0.36778961]
[1730851354887,12.43,2424.2,2423.9,0.36778961]
[1730851355046,12.43,2424.2,2423.8,0.36778961]
[1730851355384,12.43,2424.2,2423.9,0.36778961]
[1730851355692,12.43,2424.2,2423.7,4.12592]
[1730851355693,12.43,2424.2,2423.8,4.49352961]
[1730851356006,12.43,2424.2,2423.9,0.36778961]
[1730851356754,12.43,2424.2,2423.8,4.49350961]
[1730851356978,12.43,2424.2,2423.9,4.49333961]
[1730851357180,12.43,2424.2,2424.0,0.36778961]
[1730851359198,12.43,2424.2,2424.1,4.12524]
[1730851359395,12.43,2424.2,2424.1,4.49302961]
[1730851360262,12.43,2424.2,2424.1,5.04302961]
[1730851361883,12.43,2424.2,2424.1,8.04302961]
[1730851362261,12.43,2424.2,2424.1,9.76611117]
[1730851363218,12.43,2424.6,2424.5,4.12456]
[1730851363504,12.43,2424.6,2424.5,4.49234961]
[1730851363705,12.43,2424.6,2424.5,0.36805784]
[1730851364121,12.43,2424.6,2424.2,3.0]
[1730851364122,12.43,2424.6,2424.3,0.36805784]
[1730851364412,0.7971,2424.5,2424.3,0.36813084]
[1730851364614,0.7971,2424.5,2424.2,0.36813084]
[1730851365770,0.7971,2424.5,2424.3,4.12488]
[1730851366335,0.7971,2424.5,2424.1,4.12508]
[1730851366476,0.7971,2424.5,2424.2,4.4930684]
[1730851366674,0.7971,2424.5,2424.3,0.3681184]
[1730851367610,0.7971,2424.5,2424.2,4.4930884]
[1730851367824,0.7971,2424.5,2424.3,0.3681184]
[1730851368411,0.7871,2424.5,2424.3,0.3681184]
[1730851368718,0.7971,2424.5,2424.2,0.3681184]
[1730851368926,0.7971,2424.5,2424.2,4.4931784]
[1730851369109,12.43,2424.4,2424.3,0.3681184]
[1730851369724,12.43,2424.4,2424.3,4.4930184]
[1730851369963,12.43,2424.4,2424.3,5.35483324]
[1730851370463,12.43,2424.4,2424.3,4.4930184]
[1730851370764,12.43,2424.4,2424.3,4.49305272]
[1730851371427,12.43,2424.4,2424.3,4.1249]
[1730851371620,12.43,2424.4,2424.3,4.49308525]
[1730851371931,12.43,2424.4,2424.3,0.36818525]
[1730851372140,12.43,2424.4,2424.3,4.1249]
[1730851372327,12.43,2424.4,2424.3,4.49308525]
[1730851372523,12.43,2424.4,2424.3,0.36818525]
[1730851372720,12.43,2424.4,2424.2,0.36818525]
[1730851372923,12.43,2424.4,2424.3,0.36818525]
[1730851373586,12.43,2424.4,2424.3,4.49308525]
[1730851373881,12.43,2424.4,2424.3,5.35490477]
[1730851374377,12.43,2424.4,2424.3,4.98671952]
[1730851374582,12.43,2424.4,2424.3,5.35509064]
[1730851374791,12.43,2424.4,2424.3,5.35509406]
[1730851374956,12.43,2424.7,2424.3,5.35509406]
[1730851375155,12.43,2424.7,2424.4,0.36837454]
[1730851375568,0.01,2424.5,2424.4,0.36837454]
[1730851375743,0.01,2424.5,2424.4,0.3684246]
[1730851375940,12.44,2424.7,2424.4,4.4931146]
[1730851376181,12.44,2424.7,2424.6,4.12439]
[1730851376340,12.44,2424.7,2424.6,4.4928809]
[1730851377160,12.44,2424.7,2424.6,0.3684909]
[1730851377983,12.44,2424.7,2424.5,4.12453]
[1730851378166,12.44,2424.7,2424.6,0.36855972]
[1730851378982,12.44,2424.7,2424.6,4.49294972]
[1730851379967,12.44,2424.7,2424.6,0.36855972]
[1730851380899,12.44,2424.7,2424.0,0.0749]
[1730851381105,0.01,2424.7,2424.4,4.12461]
[1730851381287,0.01,2424.7,2424.5,0.36883717]
[1730851381463,12.43,2424.6,2424.4,4.12461]
[1730851381664,12.43,2424.6,2424.5,0.36888102]
[1730851382308,12.43,2424.6,2424.5,0.44378102]
[1730851382521,2.57121081,2425.5,2424.9,4.12388]
[1730851382522,12.43,2425.0,2424.9,4.12388]
[1730851382812,12.43,2425.0,2424.9,8.2001287]
[1730851382977,12.43,2425.5,2425.4,4.12303]
[1730851383175,0.01,2425.8,2425.4,4.49191102]
[1730851383176,12.43,2425.7,2425.4,4.49191102]
[1730851383378,12.43,2425.7,2425.3,3.0]
[1730851383579,0.7632,2425.5,2425.4,0.36832997]
[1730851383791,0.7632,2425.5,2425.2,0.36832069]
[1730851383966,0.7632,2425.5,2425.3,0.36832069]
[1730851384170,0.7632,2425.5,2425.0,4.1237]
[1730851384399,12.44,2425.4,2425.1,0.36814277]
[1730851384567,0.01,2425.2,2425.0,0.36814277]
[1730851384770,0.01,2425.2,2424.9,4.12373]
[1730851385000,12.43,2425.1,2425.0,0.36814277]
[1730851385705,12.43,2425.1,2425.0,4.49185277]
[1730851386331,12.43,2425.1,2425.0,0.36814277]
[1730851386516,12.43,2425.1,2425.0,4.49185277]
[1730851387240,12.43,2425.1,2425.0,4.4918276]
[1730851387941,12.43,2425.1,2425.0,9.06075071]
[1730851388165,12.44,2425.6,2425.4,4.12291]
[1730851388344,12.43,2425.5,2425.4,4.12291]
[1730851388502,12.43,2425.5,2425.4,4.49075931]
[1730851388701,12.43,2425.7,2425.6,4.12269]
[1730851389858,12.43,2425.7,2425.6,8.04035315]
[1730851391468,12.43,2426.0,2425.9,4.19708]
[1730851391614,1.71227084,2426.9,2426.3,4.1215]
[1730851391615,0.01,2426.4,2426.3,4.1215]
[1730851392262,13.1932,2426.5,2426.3,4.1215]
[1730851393451,0.01,2426.3,2426.0,4.672]